[Event "*** Titled Tuesday Blitz"]
[Site "Chess.com"]
[Date "2019.05.07"]
[Round "7"]
[White "Saitama_Hero"]
[Black "2nd_life"]
[Result "0-1"]
[WhiteElo "2237"]
[BlackElo "2435"]
[TimeControl "180+2"]
[EndTime "14:41:45 PDT"]
[Termination "2nd_life won on time"]

1. d4 {[%clk 0:03:01.9]} 1... Nf6 {[%clk 0:03:00.1]} 2. c4 {[%clk 0:03:03.3]}
2... e6 {[%clk 0:03:01.2]} 3. Nc3 {[%clk 0:03:04.8]} 3... Bb4 {[%clk 0:03:01.3]}
4. f3 {[%clk 0:03:06.4]} 4... d5 {[%clk 0:02:57.9]} 5. a3 {[%clk 0:03:07.6]}
5... Bxc3+ {[%clk 0:02:58.7]} 6. bxc3 {[%clk 0:03:09.5]} 6... c6 {[%clk
0:02:56.5]} 7. e4 {[%clk 0:03:09.2]} 7... dxe4 {[%clk 0:02:51.5]} 8. fxe4 {[%clk
0:03:11.1]} 8... e5 {[%clk 0:02:50.4]} 9. Nf3 {[%clk 0:03:10.2]} 9... Bg4 {[%clk
0:02:44.3]} 10. Bd3 {[%clk 0:02:44.5]} 10... Nbd7 {[%clk 0:02:18.9]} 11. O-O
{[%clk 0:02:41.1]} 11... O-O {[%clk 0:02:10.7]} 12. h3 {[%clk 0:02:41.1]} 12...
Bxf3 {[%clk 0:02:02.7]} 13. Qxf3 {[%clk 0:02:43]} 13... Re8 {[%clk 0:01:59.1]}
14. g4 {[%clk 0:02:18.6]} 14... h6 {[%clk 0:01:54.3]} 15. h4 {[%clk 0:02:15.1]}
15... Qe7 {[%clk 0:01:54.8]} 16. g5 {[%clk 0:02:14.1]} 16... hxg5 {[%clk
0:01:55.6]} 17. hxg5 {[%clk 0:02:16]} 17... Nh7 {[%clk 0:01:54.9]} 18. Ra2
{[%clk 0:02:04.2]} 18... Ndf8 {[%clk 0:01:44.1]} 19. Rh2 {[%clk 0:01:51.1]}
19... Nxg5 {[%clk 0:01:12.1]} 20. Qh5 {[%clk 0:01:06.3]} 20... Ngh7 {[%clk
0:01:08.5]} 21. Kh1 {[%clk 0:00:53.9]} 21... Rad8 {[%clk 0:00:51.4]} 22. Be3
{[%clk 0:00:29.6]} 22... Rd6 {[%clk 0:00:45.9]} 23. Rg1 {[%clk 0:00:20.6]} 23...
c5 {[%clk 0:00:37.2]} 24. Bg5 {[%clk 0:00:16.6]} 24... Qe6 {[%clk 0:00:20.8]}
25. Bh6 {[%clk 0:00:17.2]} 25... Qxh6 {[%clk 0:00:17.1]} 26. Qxh6 {[%clk
0:00:17.1]} 26... Rxh6 {[%clk 0:00:17.8]} 27. Rxh6 {[%clk 0:00:18.1]} 27... cxd4
{[%clk 0:00:18.1]} 28. cxd4 {[%clk 0:00:19.2]} 28... exd4 {[%clk 0:00:19.3]} 29.
Rd6 {[%clk 0:00:20.7]} 29... Ne6 {[%clk 0:00:19.8]} 30. e5 {[%clk 0:00:20.2]}
30... Nhf8 {[%clk 0:00:19.6]} 31. Be4 {[%clk 0:00:20.1]} 31... b6 {[%clk
0:00:20.2]} 32. Bc6 {[%clk 0:00:20.3]} 32... Rc8 {[%clk 0:00:21.1]} 33. Rf1
{[%clk 0:00:20]} 33... Rc7 {[%clk 0:00:20.3]} 34. Bd5 {[%clk 0:00:19.4]} 34...
g6 {[%clk 0:00:20.3]} 35. Kg2 {[%clk 0:00:18.3]} 35... Kg7 {[%clk 0:00:21.6]}
36. Kf3 {[%clk 0:00:18.5]} 36... Nh7 {[%clk 0:00:21.3]} 37. Ke2 {[%clk
0:00:19.5]} 37... Nhg5 {[%clk 0:00:22]} 38. Kd3 {[%clk 0:00:20.6]} 38... Rc5
{[%clk 0:00:09.3]} 39. Rd7 {[%clk 0:00:16.5]} 39... Ra5 {[%clk 0:00:04.9]} 40.
Bxe6 {[%clk 0:00:17.5]} 40... Rxa3+ {[%clk 0:00:05.8]} 41. Kd2 {[%clk
0:00:12.6]} 41... Nxe6 {[%clk 0:00:04.5]} 42. Rdxf7+ {[%clk 0:00:10.5]} 42...
Kh6 {[%clk 0:00:04.8]} 43. R7f6 {[%clk 0:00:10.4]} 43... Nc5 {[%clk 0:00:05.6]}
44. Rh1+ {[%clk 0:00:05.9]} 44... Kg7 {[%clk 0:00:06.8]} 45. Rg1 {[%clk
0:00:07.8]} 45... Ne4+ {[%clk 0:00:07.9]} 46. Kc2 {[%clk 0:00:07.1]} 46... Nxf6
{[%clk 0:00:09.8]} 47. exf6+ {[%clk 0:00:06.4]} 47... Kxf6 {[%clk 0:00:11.7]}
0-1

[Event "*** Titled Tuesday Blitz"]
[Site "Chess.com"]
[Date "2019.05.07"]
[Round "7"]
[White "Jbd735"]
[Black "nonscitis"]
[Result "0-1"]
[WhiteElo "2476"]
[BlackElo "2575"]
[TimeControl "180+2"]
[EndTime "14:41:47 PDT"]
[Termination "nonscitis won by resignation"]

1. e4 {[%clk 0:03:01.9]} 1... c5 {[%clk 0:03:00.2]} 2. Nf3 {[%clk 0:03:02.4]}
2... Nc6 {[%clk 0:03:01.1]} 3. d4 {[%clk 0:03:03.6]} 3... cxd4 {[%clk
0:03:02.1]} 4. Nxd4 {[%clk 0:03:05.5]} 4... e5 {[%clk 0:03:03.4]} 5. Nb5 {[%clk
0:03:05]} 5... a6 {[%clk 0:03:04.3]} 6. Nd6+ {[%clk 0:03:04.3]} 6... Bxd6 {[%clk
0:03:05.7]} 7. Qxd6 {[%clk 0:03:05.8]} 7... Qe7 {[%clk 0:03:07.3]} 8. Qd1 {[%clk
0:03:03.6]} 8... Nf6 {[%clk 0:03:08]} 9. Nc3 {[%clk 0:03:03.9]} 9... d6 {[%clk
0:03:09.2]} 10. Bg5 {[%clk 0:03:02.6]} 10... Be6 {[%clk 0:03:09.7]} 11. Bd3
{[%clk 0:02:56.4]} 11... O-O {[%clk 0:03:08.3]} 12. O-O {[%clk 0:02:54.7]} 12...
h6 {[%clk 0:03:08.1]} 13. Bh4 {[%clk 0:02:53.8]} 13... Rac8 {[%clk 0:03:06.4]}
14. a3 {[%clk 0:02:23.2]} 14... Rfd8 {[%clk 0:03:05.1]} 15. Nd5 {[%clk 0:02:17]}
15... Bxd5 {[%clk 0:03:04.5]} 16. exd5 {[%clk 0:02:18.9]} 16... Nb8 {[%clk
0:02:59.1]} 17. Re1 {[%clk 0:02:06]} 17... g5 {[%clk 0:02:57.9]} 18. Bg3 {[%clk
0:02:06.3]} 18... Nbd7 {[%clk 0:02:50.3]} 19. Qf3 {[%clk 0:02:01.7]} 19... Nc5
{[%clk 0:02:34.6]} 20. Bf5 {[%clk 0:01:59.1]} 20... Rc7 {[%clk 0:02:27.3]} 21.
c4 {[%clk 0:01:53.5]} 21... Ncd7 {[%clk 0:02:10.4]} 22. b3 {[%clk 0:01:49.6]}
22... Nf8 {[%clk 0:02:10.6]} 23. h4 {[%clk 0:01:41.8]} 23... Ng6 {[%clk
0:02:06.8]} 24. hxg5 {[%clk 0:01:40.1]} 24... hxg5 {[%clk 0:02:08.7]} 25. Rac1
{[%clk 0:01:20.3]} 25... Kg7 {[%clk 0:01:43.1]} 26. Rc3 {[%clk 0:01:17.9]} 26...
b6 {[%clk 0:01:24.3]} 27. Qe3 {[%clk 0:01:16.5]} 27... Nf4 {[%clk 0:01:17.8]}
28. Rec1 {[%clk 0:01:08.1]} 28... b5 {[%clk 0:01:11.6]} 29. f3 {[%clk
0:01:01.7]} 29... N6h5 {[%clk 0:00:52.7]} 30. Bf2 {[%clk 0:00:58.1]} 30... Qf6
{[%clk 0:00:53.3]} 31. Bg4 {[%clk 0:00:54.6]} 31... Qh6 {[%clk 0:00:51.8]} 32.
g3 {[%clk 0:00:18.7]} 32... Ng6 {[%clk 0:00:47.4]} 33. Be1 {[%clk 0:00:04.7]}
33... Rh8 {[%clk 0:00:45.7]} 34. Qf2 {[%clk 0:00:03.5]} 34... Nhf4 {[%clk
0:00:38.4]} 35. Kf1 {[%clk 0:00:02.7]} 35... Qh1+ {[%clk 0:00:31.5]} 36. Qg1
{[%clk 0:00:03.7]} 36... Qxg1+ {[%clk 0:00:32]} 37. Kxg1 {[%clk 0:00:05.6]}
37... Ne2+ {[%clk 0:00:32.9]} 38. Kg2 {[%clk 0:00:06.4]} 38... Nxc1 {[%clk
0:00:32.4]} 39. Rxc1 {[%clk 0:00:07]} 39... bxc4 {[%clk 0:00:29.6]} 40. bxc4
{[%clk 0:00:07.3]} 40... Ne7 {[%clk 0:00:30.1]} 41. f4 {[%clk 0:00:05.2]} 41...
gxf4 {[%clk 0:00:26.5]} 42. gxf4 {[%clk 0:00:05.9]} 42... Nxd5 {[%clk
0:00:27.2]} 43. fxe5 {[%clk 0:00:05.2]} 43... dxe5 {[%clk 0:00:17.3]} 44. Bg3
{[%clk 0:00:05.1]} 44... Nf4+ {[%clk 0:00:15.4]} 45. Kf3 {[%clk 0:00:04.7]}
45... Rd8 {[%clk 0:00:15.8]} 46. Bxf4 {[%clk 0:00:04]} 46... exf4 {[%clk
0:00:16.2]} 47. Kxf4 {[%clk 0:00:04.2]} 47... Rd4+ {[%clk 0:00:17.1]} 48. Kg5
{[%clk 0:00:05.4]} 48... Rdxc4 {[%clk 0:00:18.1]} 49. Rh1 {[%clk 0:00:06]} 49...
R7c5+ {[%clk 0:00:17.8]} 50. Bf5 {[%clk 0:00:07]} 50... f6+ {[%clk 0:00:19.1]}
0-1

[Event "*** Titled Tuesday Blitz"]
[Site "Chess.com"]
[Date "2019.05.07"]
[Round "7"]
[White "dsanchez1973"]
[Black "JonasHilwerda"]
[Result "0-1"]
[WhiteElo "2054"]
[BlackElo "2233"]
[TimeControl "180+2"]
[EndTime "14:41:47 PDT"]
[Termination "JonasHilwerda won by resignation"]

1. e4 {[%clk 0:03:01.9]} 1... e5 {[%clk 0:03:00.6]} 2. Nf3 {[%clk 0:02:55.8]}
2... Nc6 {[%clk 0:03:02.2]} 3. d4 {[%clk 0:02:57]} 3... exd4 {[%clk 0:03:03]} 4.
c3 {[%clk 0:02:58.6]} 4... d5 {[%clk 0:03:03.1]} 5. exd5 {[%clk 0:02:59.1]} 5...
Qxd5 {[%clk 0:03:05]} 6. cxd4 {[%clk 0:03:00.3]} 6... Bg4 {[%clk 0:03:06.6]} 7.
Be2 {[%clk 0:03:01.2]} 7... Bb4+ {[%clk 0:03:07.6]} 8. Nc3 {[%clk 0:03:01.9]}
8... Bxf3 {[%clk 0:03:09.2]} 9. Bxf3 {[%clk 0:03:03]} 9... Qc4 {[%clk
0:03:10.8]} 10. Bxc6+ {[%clk 0:03:04.5]} 10... Qxc6 {[%clk 0:03:10.7]} 11. Qe2+
{[%clk 0:03:06.4]} 11... Ne7 {[%clk 0:03:10.3]} 12. O-O {[%clk 0:03:07.3]} 12...
O-O {[%clk 0:03:09.7]} 13. a3 {[%clk 0:03:06.7]} 13... Bd6 {[%clk 0:03:07]} 14.
Be3 {[%clk 0:03:03.7]} 14... Nd5 {[%clk 0:03:05.5]} 15. Nxd5 {[%clk 0:03:04.7]}
15... Qxd5 {[%clk 0:03:07]} 16. Rac1 {[%clk 0:03:02.3]} 16... Rad8 {[%clk
0:03:07.4]} 17. Qg4 {[%clk 0:02:55.9]} 17... Kh8 {[%clk 0:02:49.1]} 18. Rfd1
{[%clk 0:02:55.6]} 18... c6 {[%clk 0:02:49.8]} 19. Bg5 {[%clk 0:02:49.5]} 19...
f6 {[%clk 0:02:49.1]} 20. Be3 {[%clk 0:02:49]} 20... f5 {[%clk 0:02:48.5]} 21.
Qh5 {[%clk 0:02:43.8]} 21... Be7 {[%clk 0:02:44.3]} 22. g3 {[%clk 0:02:40.1]}
22... Bf6 {[%clk 0:02:41]} 23. Rc5 {[%clk 0:02:33.1]} 23... Qf7 {[%clk 0:02:42]}
24. Qxf7 {[%clk 0:02:09.4]} 24... Rxf7 {[%clk 0:02:43.9]} 25. Rxf5 {[%clk
0:02:10.3]} 25... Rfd7 {[%clk 0:02:44.9]} 26. Kg2 {[%clk 0:02:03.5]} 26... Kg8
{[%clk 0:02:46.1]} 27. b3 {[%clk 0:01:56.2]} 27... Bxd4 {[%clk 0:02:43.5]} 28.
Bxd4 {[%clk 0:01:55.3]} 28... Rxd4 {[%clk 0:02:45.4]} 29. Re1 {[%clk 0:01:48.7]}
29... R4d7 {[%clk 0:02:33.5]} 30. Re3 {[%clk 0:01:45.8]} 30... Rf8 {[%clk
0:02:33.4]} 31. Rxf8+ {[%clk 0:01:45.1]} 31... Kxf8 {[%clk 0:02:35.3]} 32. f4
{[%clk 0:01:36.7]} 32... Kf7 {[%clk 0:02:31]} 33. h3 {[%clk 0:01:36.7]} 33...
Rd1 {[%clk 0:02:31.4]} 34. Kf3 {[%clk 0:01:37.4]} 34... Rd4 {[%clk 0:02:30.2]}
35. g4 {[%clk 0:01:31.3]} 35... Kf6 {[%clk 0:02:29.3]} 36. h4 {[%clk 0:01:31.3]}
36... Rd1 {[%clk 0:02:29.6]} 37. g5+ {[%clk 0:01:31.1]} 37... Kf7 {[%clk
0:02:28.2]} 38. Kg4 {[%clk 0:01:24.6]} 38... Rg1+ {[%clk 0:02:28.2]} 39. Kf3
{[%clk 0:01:20.6]} 39... Rh1 {[%clk 0:02:28.6]} 40. Kg3 {[%clk 0:01:20.3]} 40...
Rg1+ {[%clk 0:02:22.3]} 41. Kf3 {[%clk 0:01:20.4]} 41... Rd1 {[%clk 0:02:23]}
42. Kg4 {[%clk 0:01:19.7]} 42... g6 {[%clk 0:02:20.9]} 43. Rc3 {[%clk
0:01:16.9]} 43... Rd4 {[%clk 0:02:15.6]} 44. Re3 {[%clk 0:01:16.2]} 44... Rd6
{[%clk 0:02:09.8]} 45. a4 {[%clk 0:01:12.8]} 45... Re6 {[%clk 0:02:10.8]} 46.
Rd3 {[%clk 0:01:13.3]} 46... Ke7 {[%clk 0:02:11.6]} 47. Kf3 {[%clk 0:01:13.2]}
47... Re1 {[%clk 0:02:10.9]} 48. Rc3 {[%clk 0:01:06]} 48... Ke6 {[%clk
0:02:07.9]} 49. Rd3 {[%clk 0:01:03.9]} 49... Rh1 {[%clk 0:01:45.4]} 50. Kg3
{[%clk 0:01:02.2]} 50... Rb1 {[%clk 0:01:35.8]} 51. Kf3 {[%clk 0:00:56.4]} 51...
Kf5 {[%clk 0:01:34.9]} 52. Rd7 {[%clk 0:00:57]} 52... Rxb3+ {[%clk 0:01:35]} 53.
Ke2 {[%clk 0:00:56.3]} 53... Kxf4 {[%clk 0:01:33.6]} 54. Rxh7 {[%clk 0:00:57.2]}
54... c5 {[%clk 0:01:24.4]} 55. Rg7 {[%clk 0:00:35.7]} 55... Kf5 {[%clk
0:01:17.2]} 56. Rf7+ {[%clk 0:00:36.6]} 56... Kg4 {[%clk 0:01:17.8]} 57. Rf6
{[%clk 0:00:35.7]} 57... Kh5 {[%clk 0:01:14.2]} 58. Kd2 {[%clk 0:00:33.6]} 58...
Rb6 {[%clk 0:01:13.4]} 59. a5 {[%clk 0:00:25.3]} 59... Rxf6 {[%clk 0:00:52.4]}
60. gxf6 {[%clk 0:00:26.1]} 60... Kh6 {[%clk 0:00:53.9]} 61. Kc2 {[%clk
0:00:25.1]} 61... Kh7 {[%clk 0:00:54.2]} 62. Kc3 {[%clk 0:00:26.3]} 62... Kg8
{[%clk 0:00:51]} 63. Kc4 {[%clk 0:00:28.2]} 63... b6 {[%clk 0:00:51.5]} 64. axb6
{[%clk 0:00:27.1]} 64... axb6 {[%clk 0:00:53.4]} 65. Kd5 {[%clk 0:00:27.7]}
65... Kf7 {[%clk 0:00:54.9]} 66. Ke5 {[%clk 0:00:27.7]} 66... b5 {[%clk
0:00:55.5]} 67. Kd5 {[%clk 0:00:28.8]} 67... c4 {[%clk 0:00:56.4]} 0-1

[Event "*** Titled Tuesday Blitz"]
[Site "Chess.com"]
[Date "2019.05.07"]
[Round "7"]
[White "Orest_Vovk"]
[Black "jacky72"]
[Result "0-1"]
[WhiteElo "2453"]
[BlackElo "2640"]
[TimeControl "180+2"]
[EndTime "14:41:57 PDT"]
[Termination "jacky72 won by resignation"]

1. h4 {[%clk 0:03:01.9]} 1... d5 {[%clk 0:02:59.6]} 2. h5 {[%clk 0:03:03.1]}
2... h6 {[%clk 0:02:59.2]} 3. e4 {[%clk 0:03:03.8]} 3... dxe4 {[%clk 0:03:00]}
4. Nc3 {[%clk 0:03:04.8]} 4... Nf6 {[%clk 0:03:00.5]} 5. Qe2 {[%clk 0:03:05.9]}
5... Bf5 {[%clk 0:02:55.6]} 6. Qb5+ {[%clk 0:03:06.8]} 6... Bd7 {[%clk 0:02:57]}
7. Qxb7 {[%clk 0:03:07.9]} 7... Nc6 {[%clk 0:02:58.6]} 8. Bb5 {[%clk 0:03:08.7]}
8... Rb8 {[%clk 0:02:54.8]} 9. Qa6 {[%clk 0:03:09.5]} 9... Nb4 {[%clk
0:02:50.7]} 10. Bxd7+ {[%clk 0:03:09.1]} 10... Qxd7 {[%clk 0:02:49.6]} 11. Qxa7
{[%clk 0:03:10.2]} 11... Rd8 {[%clk 0:02:40.2]} 12. Kd1 {[%clk 0:03:10.2]} 12...
e5 {[%clk 0:02:06.1]} 13. a3 {[%clk 0:02:56.7]} 13... Nc6 {[%clk 0:02:00.5]} 14.
Qa4 {[%clk 0:02:41.4]} 14... Bc5 {[%clk 0:01:57.9]} 15. Nge2 {[%clk 0:02:31.7]}
15... O-O {[%clk 0:01:54.9]} 16. Nxe4 {[%clk 0:02:27.2]} 16... Nxe4 {[%clk
0:01:53.3]} 17. Qxe4 {[%clk 0:02:27.2]} 17... Bxf2 {[%clk 0:01:54.2]} 18. d3
{[%clk 0:02:23.4]} 18... f5 {[%clk 0:01:53.8]} 19. Qc4+ {[%clk 0:02:05.6]} 19...
Kh8 {[%clk 0:01:54.7]} 20. Rf1 {[%clk 0:02:00.3]} 20... Bb6 {[%clk 0:01:53.2]}
21. Bd2 {[%clk 0:01:57.2]} 21... e4 {[%clk 0:01:54.2]} 22. Nf4 {[%clk
0:01:56.1]} 22... Ne5 {[%clk 0:01:50.7]} 23. Qe6 {[%clk 0:01:25.6]} 23... exd3
{[%clk 0:01:44.9]} 24. Qxe5 {[%clk 0:01:05.6]} 24... dxc2+ {[%clk 0:01:45.3]}
25. Kxc2 {[%clk 0:01:07.3]} 25... Qxd2+ {[%clk 0:01:46.3]} 26. Kb1 {[%clk
0:01:08.5]} 26... Rf6 {[%clk 0:01:30.3]} 27. Ka2 {[%clk 0:00:31.6]} 27... Bd4
{[%clk 0:01:17.5]} 28. Qe2 {[%clk 0:00:31.4]} 28... Bxb2 {[%clk 0:00:59.8]} 29.
Rad1 {[%clk 0:00:09.1]} 29... Bc3+ {[%clk 0:01:00.3]} 30. Rxd2 {[%clk
0:00:09.7]} 30... Rxd2+ {[%clk 0:01:02.2]} 31. Qxd2 {[%clk 0:00:11.3]} 31...
Bxd2 {[%clk 0:01:04.1]} 32. Ng6+ {[%clk 0:00:12.7]} 32... Kh7 {[%clk 0:01:03]}
33. Rd1 {[%clk 0:00:14.3]} 33... Rd6 {[%clk 0:00:58]} 34. Kb3 {[%clk 0:00:10]}
34... Kg8 {[%clk 0:00:50.1]} 35. Kc2 {[%clk 0:00:09.8]} 35... Bg5 {[%clk
0:00:43.9]} 36. Rxd6 {[%clk 0:00:08.3]} 36... cxd6 {[%clk 0:00:45.8]} 37. a4
{[%clk 0:00:07.8]} 37... Bd8 {[%clk 0:00:46.8]} 38. Kd3 {[%clk 0:00:07.1]} 38...
Kf7 {[%clk 0:00:47.8]} 39. Kd4 {[%clk 0:00:06.5]} 39... Ba5 {[%clk 0:00:42.7]}
40. Kd5 {[%clk 0:00:07.2]} 40... Bb4 {[%clk 0:00:44.2]} 41. Nf4 {[%clk
0:00:06.8]} 41... Kf6 {[%clk 0:00:43.8]} 42. Ne6 {[%clk 0:00:08]} 42... g6
{[%clk 0:00:33.5]} 43. hxg6 {[%clk 0:00:09.9]} 43... Kxg6 {[%clk 0:00:35.4]} 44.
Nd4 {[%clk 0:00:10.3]} 44... Bc5 {[%clk 0:00:34]} 45. a5 {[%clk 0:00:08.7]}
45... h5 {[%clk 0:00:31.5]} 46. a6 {[%clk 0:00:09.3]} 46... h4 {[%clk
0:00:30.7]} 47. Ne6 {[%clk 0:00:06.4]} 47... Ba7 {[%clk 0:00:30.2]} 48. Kxd6
{[%clk 0:00:06.7]} 48... Kh5 {[%clk 0:00:29.1]} 49. Ke5 {[%clk 0:00:05.9]} 49...
Kg4 {[%clk 0:00:29.5]} 50. Nf4 {[%clk 0:00:05]} 50... Bb8+ {[%clk 0:00:29.8]}
51. Kf6 {[%clk 0:00:06.1]} 51... Kxf4 {[%clk 0:00:31.1]} 52. Kg6 {[%clk
0:00:07.7]} 52... Kg4 {[%clk 0:00:31.9]} 53. Kf6 {[%clk 0:00:08.4]} 53... Ba7
{[%clk 0:00:32.6]} 54. Ke5 {[%clk 0:00:07.7]} 54... f4 {[%clk 0:00:34.5]} 55.
Ke4 {[%clk 0:00:08.4]} 55... Bb6 {[%clk 0:00:33.7]} 56. Ke5 {[%clk 0:00:08.2]}
56... f3 {[%clk 0:00:34.5]} 57. a7 {[%clk 0:00:07.5]} 57... Bxa7 {[%clk
0:00:34.2]} 0-1

[Event "*** Titled Tuesday Blitz"]
[Site "Chess.com"]
[Date "2019.05.07"]
[Round "7"]
[White "RzayevB"]
[Black "VSERGUEI"]
[Result "0-1"]
[WhiteElo "2702"]
[BlackElo "2649"]
[TimeControl "180+2"]
[EndTime "14:42:06 PDT"]
[Termination "VSERGUEI won by resignation"]

1. e4 {[%clk 0:03:01.9]} 1... e6 {[%clk 0:03:00.3]} 2. b3 {[%clk 0:03:00.6]}
2... d5 {[%clk 0:03:00.4]} 3. Bb2 {[%clk 0:03:02]} 3... dxe4 {[%clk 0:03:01.1]}
4. Nc3 {[%clk 0:03:03.4]} 4... Nf6 {[%clk 0:03:01.2]} 5. Qe2 {[%clk 0:03:04.7]}
5... Bd7 {[%clk 0:03:01.2]} 6. g4 {[%clk 0:02:54.4]} 6... Bc6 {[%clk 0:03:01.4]}
7. Bg2 {[%clk 0:02:55.7]} 7... Nd5 {[%clk 0:02:41.8]} 8. Nxd5 {[%clk 0:02:15.8]}
8... Qxd5 {[%clk 0:02:41]} 9. O-O-O {[%clk 0:02:17.7]} 9... Nd7 {[%clk
0:02:37.6]} 10. Kb1 {[%clk 0:01:35.9]} 10... O-O-O {[%clk 0:02:34.4]} 11. Nh3
{[%clk 0:01:23.4]} 11... Bd6 {[%clk 0:02:10.9]} 12. Bxg7 {[%clk 0:00:57.8]}
12... Rhg8 {[%clk 0:02:10.6]} 13. Bb2 {[%clk 0:00:57.7]} 13... f5 {[%clk
0:02:01.5]} 14. gxf5 {[%clk 0:00:51.6]} 14... Rxg2 {[%clk 0:01:57.8]} 15. f6
{[%clk 0:00:45.9]} 15... Qf5 {[%clk 0:01:55.4]} 16. Qe3 {[%clk 0:00:36.8]} 16...
Nxf6 {[%clk 0:01:47.6]} 17. Rhg1 {[%clk 0:00:35.9]} 17... Nd5 {[%clk 0:01:26.4]}
18. Qh6 {[%clk 0:00:32.8]} 18... Rxh2 {[%clk 0:01:25.8]} 19. Rh1 {[%clk
0:00:28.5]} 19... Rxh1 {[%clk 0:01:25.8]} 20. Rxh1 {[%clk 0:00:30.4]} 20... e3
{[%clk 0:01:24.9]} 21. fxe3 {[%clk 0:00:20.5]} 21... Nc3+ {[%clk 0:01:23]} 22.
Bxc3 {[%clk 0:00:20.7]} 22... Bxh1 {[%clk 0:01:23.7]} 23. Ng5 {[%clk 0:00:22.1]}
23... Bd5 {[%clk 0:01:21.3]} 24. Nxh7 {[%clk 0:00:21.7]} 24... Be4 {[%clk
0:01:19.3]} 25. d3 {[%clk 0:00:21.2]} 25... Qxh7 {[%clk 0:01:16]} 26. Qxe6+
{[%clk 0:00:22.3]} 26... Kb8 {[%clk 0:01:11.7]} 27. dxe4 {[%clk 0:00:23.6]}
27... Qe7 {[%clk 0:01:11]} 28. Qf5 {[%clk 0:00:23.6]} 28... Re8 {[%clk
0:01:11.2]} 29. Bd4 {[%clk 0:00:21.7]} 29... b6 {[%clk 0:01:09.6]} 30. a4 {[%clk
0:00:19.9]} 30... Qxe4 {[%clk 0:01:09.2]} 31. Qb5 {[%clk 0:00:20]} 31... Kb7
{[%clk 0:00:59]} 32. a5 {[%clk 0:00:20.4]} 32... a6 {[%clk 0:00:59.1]} 33. Qc4
{[%clk 0:00:17.2]} 33... Qc6 {[%clk 0:00:58.4]} 34. Qf7 {[%clk 0:00:16.9]} 34...
bxa5 {[%clk 0:00:55.4]} 35. Qh5 {[%clk 0:00:16.3]} 35... a4 {[%clk 0:00:50.5]}
36. bxa4 {[%clk 0:00:17.7]} 36... Qxa4 {[%clk 0:00:49]} 37. Kc1 {[%clk
0:00:19.3]} 37... Qb5 {[%clk 0:00:48.9]} 38. Qh1+ {[%clk 0:00:18.4]} 38... Qc6
{[%clk 0:00:49.4]} 39. Qh5 {[%clk 0:00:19.5]} 39... Ka8 {[%clk 0:00:47]} 40. Kd2
{[%clk 0:00:18.9]} 40... Rb8 {[%clk 0:00:47.1]} 41. Qf5 {[%clk 0:00:14.5]} 41...
Bb4+ {[%clk 0:00:46.8]} 42. Kd1 {[%clk 0:00:10.3]} 42... Qb5 {[%clk 0:00:40.7]}
43. Qf3+ {[%clk 0:00:08.8]} 43... Qb7 {[%clk 0:00:40.7]} 44. Qf6 {[%clk
0:00:07.6]} 44... Ba5 {[%clk 0:00:33.2]} 45. Ke2 {[%clk 0:00:03]} 45... Bb6
{[%clk 0:00:33.5]} 46. Bc3 {[%clk 0:00:04.5]} 46... Re8 {[%clk 0:00:31.6]} 47.
Qg6 {[%clk 0:00:04.7]} 47... Rxe3+ {[%clk 0:00:31]} 48. Kd2 {[%clk 0:00:06.2]}
48... Qd5+ {[%clk 0:00:30.5]} 49. Kc1 {[%clk 0:00:07]} 49... Rxc3 {[%clk
0:00:26]} 50. Qe8+ {[%clk 0:00:07.9]} 50... Kb7 {[%clk 0:00:25.9]} 51. Qe2
{[%clk 0:00:08.5]} 51... Rc6 {[%clk 0:00:26.2]} 52. Qf1 {[%clk 0:00:07.3]} 52...
Qd6 {[%clk 0:00:26.9]} 53. Qf3 {[%clk 0:00:07.9]} 53... Qc5 {[%clk 0:00:27.8]}
54. Kb1 {[%clk 0:00:06.6]} 54... Qb5+ {[%clk 0:00:28.7]} 55. Ka2 {[%clk
0:00:06.6]} 55... a5 {[%clk 0:00:27.6]} 56. Qe4 {[%clk 0:00:05.7]} 56... Qc4+
{[%clk 0:00:28]} 57. Qxc4 {[%clk 0:00:06.5]} 57... Rxc4 {[%clk 0:00:29.2]} 0-1